Cogmind - Beta 13 @@@ ROGUE MODE // 2024.07.08 @ 17:17:35 Player: Quiggsy Result: Destroyed by G-47 Trooper with Particle Gun Performance ------------- Evolutions (3) 1500 Regions Visited (7) 1400 Robots Destroyed (52) 260 Value Destroyed (2090) 2090 Prototype IDs (0) 0 Alien Tech Used (0) 0 Bonus (0) 0 TOTAL SCORE: 5250 Bonus ------- None Cogmind --------- Core Integrity 0/700 Matter 7/300 Energy 99/100 System Corruption 25% Temperature Cool (9) Movement Rolling (100) Location -7/Factory Parts ------- > --- POWER (2) -------- (None) > --- PROPULSION (4) --- Compact Wheel > --- UTILITY (4) ------ (None) > --- WEAPON (3) ------- (None) > --- INVENTORY (5) ---- Light Nuclear Core Improved Heat Sink Hardened Medium Armor Plating Peak State ------------ > --- POWER ------------ Antimatter Reactor > --- PROPULSION ------- Heavy Treads > --- UTILITY ---------- Damper Plating > --- WEAPON ----------- Heavy Assault Rifle > --- INVENTORY -------- Light Nuclear Core Improved Heat Sink Hardened Medium Armor Plating [Rating: 45] Favorites ----------- Power Light Nuclear Core Engine Improved Ion Engine Power Core Light Nuclear Core Reactor Antimatter Reactor Propulsion Improved Treads Treads Improved Treads Leg Carbon-fiber Leg Wheel Wheel Utility Hacking Suite Device Recoil Stabilizer Processor Signal Interpreter Hackware Hacking Suite Protection Damper Plating Weapon Heavy Assault Rifle Ballistic Gun Heavy Assault Rifle Build | -11 -10 -9 -9 -8 -7 -7 -7 ------- Run | Yrd Mat Mat Min Mat Fac Was Fac Slots Evolved 6 | . . 2 . 2 2 . . Power 1 | . . 1 . . . . . Propulsion 2 | . . 1 . 1 . . . Utility 2 | . . . . 1 1 . . Weapon 1 | . . . . . 1 . . Parts Attached 69 | 5 7 15 . 27 9 5 1 Power 17 | 1 1 4 . 7 2 2 . Engine 10 | 1 1 2 . 5 1 . . Core 5 | . . 2 . 2 1 . . Reactor 2 | . . . . . . 2 . Propulsion 26 | 2 2 6 . 11 3 1 1 Treads 14 | . 2 6 . 5 . 1 . Leg 9 | . . . . 6 3 . . Wheel 3 | 2 . . . . . . 1 Hover . | . . . . . . . . Flight . | . . . . . . . . Utility 8 | . 2 . . 3 2 1 . Device 1 | . . . . . 1 . . Storage . | . . . . . . . . Processor 4 | . 1 . . 2 1 . . Hackware 2 | . 1 . . 1 . . . Protection 1 | . . . . . . 1 . Artifact . | . . . . . . . . Weapon 18 | 2 2 5 . 6 2 1 . Energy Gun . | . . . . . . . . Energy Cannon . | . . . . . . . . Ballistic Gun 18 | 2 2 5 . 6 2 1 . Ballistic Cannon . | . . . . . . . . Launcher . | . . . . . . . . Special Weapon . | . . . . . . . . Impact Weapon . | . . . . . . . . Slashing Weapon . | . . . . . . . . Piercing Weapon . | . . . . . . . . Special Melee Weapon . | . . . . . . . . Unidentified Prototypes . | . . . . . . . . Parts Lost 25 | . 3 1 . 10 4 7 . Power 6 | . 1 1 . 1 1 2 . Propulsion 12 | . 2 . . 7 1 2 . Utility 2 | . . . . 1 1 . . Weapon 5 | . . . . 1 1 3 . Highest Loss Streak 5 | . 2 1 . 3 4 5 . To Critical Strikes 1 | . . . . . . 1 . Average Slot Usage (%) 85 | . 94 99 100 92 91 29 1 Engine 10 | . 14 9 11 13 9 1 . Core 5 | . . 11 11 4 5 1 . Treads 20 | . 22 32 33 19 . 5 . Leg 6 | . . . . 11 25 3 . Processor 10 | . 9 11 11 13 15 2 . Hackware 10 | . 13 11 11 13 7 1 . Ballistic Gun 19 | . 28 22 22 17 23 7 . Naked Turns 113 | . . . . . . 13 100 Heaviest Build 64 | 8 9 18 18 20 27 64 . Greatest Support 92 | 20 40 69 69 92 60 70 16 Greatest Overweight (x) 5 | . . . . 1 . 5 . Average Overweight (x) . | . . . . . . . . Largest Inventory Capacity 5 | 5 5 5 5 5 5 5 5 Average Capacity 5 | 5 5 5 5 5 5 5 5 Most Carried 5 | 3 5 5 5 5 5 3 3 Average Carried 4 | 1 4 4 4 4 2 3 3 Final Capacity 5 | 5 5 5 5 5 5 5 5 Final Carried 5 | 3 5 5 5 5 3 3 3 Class Distribution -------------------- 57% | Scavenger-Mutant 31% | Mutant 9% | Scavenger-Gunner Dominant Class ---------------- Mutant | -10/Materials Scavenger-Mutant | -9/Materials Scavenger-Mutant | -9/Mines Scavenger-Mutant | -8/Materials Scavenger-Gunner | -7/Factory Mutant | -7/Waste Mutant | -7/Factory Resources | -11 -10 -9 -9 -8 -7 -7 -7 ----------- Run | Yrd Mat Mat Min Mat Fac Was Fac Matter Collected 1645 | 240 184 379 54 723 65 . . Remotely . | . . . . . . . . Salvage Created 2291 | . 279 521 107 1001 92 291 . Parts 121 | . 23 30 8 51 2 7 . Haulers Intercepted . | . . . . . . . . Recyclers Shooed 1 | . 1 . . . . . . Parts Field Recycled . | . . . . . . . . Retrieved Matter . | . . . . . . . . Parts Self-Destructed . | . . . . . . . . Prevented . | . . . . . . . . Kills | -11 -10 -9 -9 -8 -7 -7 -7 ------- Run | Yrd Mat Mat Min Mat Fac Was Fac Combat Hostiles Destroyed 49 | . 8 11 4 22 3 1 . Guns 48 | . 8 11 4 22 2 1 . AOE 1 | . . . . . 1 . . Classes Destroyed 6 | . 3 1 . 1 . 1 . Operator 3 | . 1 1 . 1 . . . Swarmer 5 | . 3 . 2 . . . . Grunt 26 | . 5 7 2 12 . . . Sentry 14 | . . 4 . 9 1 . . Hunter 3 | . . . . 1 2 . . Compactor 1 | . . . . . . 1 . Best Kill Streak 4 | . 4 3 2 3 2 1 . Combat Bots Only 4 | . 4 3 2 3 2 1 . Max Kills in Single Turn 1 | . 1 1 1 1 1 1 . Gunslinging . | . . . . . . . . Exploded 1 | . . . . . 1 . . Melee . | . . . . . . . . Uniques/NPCs Destroyed . | . . . . . . . . Combat | -11 -10 -9 -9 -8 -7 -7 -7 -------- Run | Yrd Mat Mat Min Mat Fac Was Fac Hostile Shots Fired 417 | . 52 67 15 171 34 18 60 Missed 128 | . 15 16 7 56 12 1 21 Damage Taken 4613 | . 451 647 78 1803 399 793 442 Core 1024 | . 47 72 . 192 44 244 425 Absorbed by Shields . | . . . . . . . . Core Remaining (%) 82 | 100 81 . 82 65 . . . Volleys Fired 174 | . 27 39 9 83 10 6 . Largest 3 | . 2 2 2 2 3 3 . Hottest 69 | . 40 46 46 50 69 69 . Shots Fired 363 | . 54 78 18 165 30 18 . Gun 363 | . 54 78 18 165 30 18 . Cannon . | . . . . . . . . Launcher . | . . . . . . . . Special . | . . . . . . . . Kinetic 363 | . 54 78 18 165 30 18 . Thermal . | . . . . . . . . Explosive . | . . . . . . . . Electromagnetic . | . . . . . . . . Robot Hit Streak 17 | . 4 8 8 17 7 13 . Robot Miss Streak 4 | . 2 3 1 4 2 1 . Penetration Max . | . . . . . . . . Secondary Targets 6 | . 1 . 1 4 . . . Max Gunslinging Chain 1 | . 1 . 1 1 . . . Shots Hit Robots 261 | . 28 48 14 136 20 15 . Core Hits 116 | . 20 19 6 60 7 4 . Critical Kills . | . . . . . . . . Critical Parts Destroyed 1 | . . 1 . . . . . Critical Strikes 1 | . . 1 . . . . . Destroy 1 | . . 1 . . . . . Melee Attacks . | . . . . . . . . Impact . | . . . . . . . . Slashing . | . . . . . . . . Piercing . | . . . . . . . . Sneak Attacks . | . . . . . . . . Combat Hostiles . | . . . . . . . . Follow-up Attacks . | . . . . . . . . Damage Inflicted 4479 | . 312 745 213 2301 657 251 . Guns 4066 | . 312 745 213 2301 244 251 . Cannons . | . . . . . . . . Explosions 413 | . . . . . 413 . . Melee . | . . . . . . . . Ramming . | . . . . . . . . Kinetic 4066 | . 312 745 213 2301 244 251 . Thermal 413 | . . . . . 413 . . Explosive . | . . . . . . . . Electromagnetic . | . . . . . . . . Impact . | . . . . . . . . Slashing . | . . . . . . . . Piercing . | . . . . . . . . Highest Corruption 25 | . . . . . . 25 25 Average Corruption 18 | . . . . . . 15 25 Corruption Purged . | . . . . . . . . Corruption Blocked . | . . . . . . . . Effects 26 | . . . . . . 16 10 Message Errors 3 | . . . . . . 3 . Matter Fused 3 | . . . . . . 2 1 Heat Flow Errors 5 | . . . . . . 3 2 Energy Discharges 1 | . . . . . . . 1 Parts Rejected 2 | . . . . . . 2 . Data Loss (minor) 4 | . . . . . . 2 2 Data Loss (major) 1 | . . . . . . 1 . Misdirections 7 | . . . . . . 3 4 Overload Shots . | . . . . . . . . Overflow Damage 116 | . . . . . 116 . . Projectiles . | . . . . . . . . Explosions 116 | . . . . . 116 . . Melee . | . . . . . . . . Knockbacks . | . . . . . . . . Impact . | . . . . . . . . Kinetic . | . . . . . . . . Secondary . | . . . . . . . . Self-Inflicted Damage 151 | . . . . . 151 . . Shots 3 | . . . . . 3 . . Rammed 2 | . . . . . . 2 . Targets Rammed 2 | . . . . . . 2 . Kicked . | . . . . . . . . Crushed . | . . . . . . . . Highest Temperature 233 | . 12 139 18 33 54 233 206 Average Temperature 30 | . 7 46 13 12 19 63 90 Received Heat Transfer 1461 | . 159 321 18 720 36 . 207 Siege Activations . | . . . . . . . . Robots Corrupted . | . . . . . . . . Combat Hostiles . | . . . . . . . . Parts Fried . | . . . . . . . . Impact Corruptions . | . . . . . . . . Robots Melted . | . . . . . . . . Combat Hostiles . | . . . . . . . . Parts Melted 1 | . . . . . 1 . . Heat Transferred 300 | . . . . . 300 . . Parts Sabotaged . | . . . . . . . . Parts Stolen . | . . . . . . . . Parts Stripped . | . . . . . . . . Power Chain Reactions . | . . . . . . . . Alert | -11 -10 -9 -9 -8 -7 -7 -7 ------- Run | Yrd Mat Mat Min Mat Fac Was Fac Peak Influence 363 | . 178 272 97 363 315 125 69 Initial 146 | . . . 57 19 146 110 24 Average 129 | . 84 120 75 180 252 63 37 Maximum Alert Level 1 | . . 1 . 1 1 . . Low Security (%) 75 | 100 100 83 100 50 27 100 100 Level 1 24 | . . 16 . 49 72 . . Level 2 . | . . . . . . . . Level 3 . | . . . . . . . . Level 4 . | . . . . . . . . Level 5 . | . . . . . . . . High Security . | . . . . . . . . Max Security . | . . . . . . . . Squads Dispatched 8 | . 1 2 . 3 1 . 1 Investigation 5 | . . 1 . 2 1 . 1 Extermination . | . . . . . . . . Reinforcement 3 | . 1 1 . 1 . . . Assault . | . . . . . . . . Garrison . | . . . . . . . . Intercept . | . . . . . . . . Searches Triggered . | . . . . . . . . Construction Impeded . | . . . . . . . . Haulers Reinforced . | . . . . . . . . Active Scanning Responses . | . . . . . . . . Cargo Convoy Interrupts . | . . . . . . . . Stealth | -11 -10 -9 -9 -8 -7 -7 -7 --------- Run | Yrd Mat Mat Min Mat Fac Was Fac Distress Signals 5 | . 2 . . 2 . . 1 Communications Jammed . | . . . . . . . . Distress Signals . | . . . . . . . . Times Spotted 80 | . 15 16 5 25 3 6 10 Peak Tracking Total 9 | . 5 3 2 4 2 5 9 Tactical Retreats 2 | . . 1 . . . . 1 Traps | -11 -10 -9 -9 -8 -7 -7 -7 ------- Run | Yrd Mat Mat Min Mat Fac Was Fac Traps Triggered 3 | . 2 . . . 1 . . Indirectly . | . . . . . . . . Trap Hack Attempts . | . . . . . . . . Triggered . | . . . . . . . . Disarmed . | . . . . . . . . Reprogrammed 10 | . . . . 10 . . . Reused 4 | . . . . 4 . . . Traps Extracted . | . . . . . . . . Installed . | . . . . . . . . Triggered 4 | . . . . 4 . . . Machines | -11 -10 -9 -9 -8 -7 -7 -7 ---------- Run | Yrd Mat Mat Min Mat Fac Was Fac Machines Disabled 5 | . . . . . 5 . . Max in Single Turn 5 | . . . . . 5 . . Machines Repaired . | . . . . . . . . Machines Dismantled . | . . . . . . . . Machines Sabotaged . | . . . . . . . . Overloaded Fab Kills . | . . . . . . . . Hacking | -11 -10 -9 -9 -8 -7 -7 -7 --------- Run | Yrd Mat Mat Min Mat Fac Was Fac Machines Accessed 8 | . 1 1 . 4 1 . 1 Terminals 4 | . 1 . . 3 . . . Fabricators 2 | . . . . . 1 . 1 Repair Stations . | . . . . . . . . Recycling Units . | . . . . . . . . Scanalyzers 2 | . . 1 . 1 . . . Garrison Access . | . . . . . . . . Total Hacks 24 | . 2 4 . 13 3 . 2 Successful 14 | . 2 1 . 7 2 . 2 Failed 10 | . . 3 . 6 1 . . Catastrophic . | . . . . . . . . Database Lockouts . | . . . . . . . . Manual 2 | . . . . 2 . . . Terminals 11 | . 2 . . 9 . . . Fabricators 5 | . . . . . 3 . 2 Repair Stations . | . . . . . . . . Recycling Units . | . . . . . . . . Scanalyzers 8 | . . 4 . 4 . . . Garrison Access . | . . . . . . . . Terminal Hacks 6 | . 2 . . 4 . . . Record 2 | . . . . 2 . . . Locate Traps 1 | . 1 . . . . . . Reprogram Traps 2 | . . . . 2 . . . Zone Layout 1 | . 1 . . . . . . Fabricator Hacks 4 | . . . . . 2 . 2 Load Schematic 2 | . . . . . 1 . 1 Build 2 | . . . . . 1 . 1 Repair Station Hacks . | . . . . . . . . Recycling Unit Hacks . | . . . . . . . . Scanalyzer 4 | . . 1 . 3 . . . Insert Component 3 | . . 1 . 2 . . . Analyze 1 | . . . . 1 . . . Garrison Access Hacks . | . . . . . . . . Unauthorized Hacks . | . . . . . . . . Terminals . | . . . . . . . . Fabricators . | . . . . . . . . Repair Stations . | . . . . . . . . Recycling Units . | . . . . . . . . Scanalyzers . | . . . . . . . . Garrison Access . | . . . . . . . . Data Cores Recovered . | . . . . . . . . Used . | . . . . . . . . Hacking Detections 6 | . . 1 . 3 1 . 1 Full Trace Events 5 | . . 1 . 2 1 . 1 Feedback Events . | . . . . . . . . Feedback Blocked . | . . . . . . . . Robot Schematics Acquired . | . . . . . . . . Robots Built . | . . . . . . . . Authchips . | . . . . . . . . Time . | . . . . . . . . Total Robot Build Rating . | . . . . . . . . Part Schematics Acquired 1 | . . . . 1 . . . Parts Built 2 | . . . . . 2 . . Authchips . | . . . . . . . . Time 109 | . . . . . 36 . 73 Total Part Build Rating 6 | . . . . . 6 . . Parts Repaired . | . . . . . . . . Time . | . . . . . . . . Parts Recycled . | . . . . . . . . Recycled Matter . | . . . . . . . . Retrieved Matter . | . . . . . . . . Retrieved Components . | . . . . . . . . Parts Scanalyzed 2 | . . 1 . 1 . . . Part Schematics Acquired 1 | . . . . 1 . . . Parts Damaged 1 | . . 1 . . . . . Bothacking | -11 -10 -9 -9 -8 -7 -7 -7 ------------ Run | Yrd Mat Mat Min Mat Fac Was Fac Used RIF Installer . | . . . . . . . . Robots Hacked . | . . . . . . . . Non-combat . | . . . . . . . . Combat . | . . . . . . . . Robot Hacks Applied . | . . . . . . . . Relay Couplers Released . | . . . . . . . . Fabnet Peak Effective % . | . . . . . . . . Robots Rewired . | . . . . . . . . Allies Hacked . | . . . . . . . . Hacks Repelled . | . . . . . . . . Allies | -11 -10 -9 -9 -8 -7 -7 -7 -------- Run | Yrd Mat Mat Min Mat Fac Was Fac Total Allies 1 | . . . . . . 1 . Largest Group 1 | . . . . . . 1 . Highest-Rated Group 31 | . . . . . . 31 . Highest-Rated Ally 31 | . . . . . . 31 . Total Orders . | . . . . . . . . Ally Attacks 6 | . . . . . . 6 . Total Damage 102 | . . . . . . 102 . Kills . | . . . . . . . . Allies Corrupted . | . . . . . . . . Allies Melted . | . . . . . . . . Intel | -11 -10 -9 -9 -8 -7 -7 -7 ------- Run | Yrd Mat Mat Min Mat Fac Was Fac Robot Analysis Total . | . . . . . . . . Derelict Logs Recovered 2 | . . . 2 . . . . Drone Launches . | . . . . . . . . Drone Recoveries . | . . . . . . . . Exploration | -11 -10 -9 -9 -8 -7 -7 -7 ------------- Run | Yrd Mat Mat Min Mat Fac Was Fac Turns Passed 3193 | 48 467 500 490 1012 281 274 121 Spaces Moved 1855 | 48 268 222 284 478 168 170 217 Core 223 | 1 . . . . . 26 196 Treads 1109 | . 196 222 284 279 . 128 . Legs 383 | . . . . 199 168 16 . Wheels 140 | 47 72 . . . . . 21 Hover . | . . . . . . . . Flight . | . . . . . . . . Fastest Speed 50 | 50 80 160 160 120 120 50 50 Average Speed 133 | 79 138 160 160 143 120 143 54 Slowest Speed 300 | 80 160 160 160 190 120 300 100 Overloaded Moves . | . . . . . . . . Propulsion Burnouts . | . . . . . . . . Robots Hopped . | . . . . . . . . Cave-ins Triggered . | . . . . . . . . Exploration Rate (%) 36 | 3 47 22 71 42 5 96 7 Regions Visited 7 Branch Regions 1 Pre-discovered Areas . | . . . . . . . . Known Exits Taken 4 | . 1 1 1 1 . . . Unknown Exits Taken 1 | 1 . . . . . . . Scrap Searched 2 | . . . 2 . . . . Spaces Dug . | . . . . . . . . Terrain Destroyed 37 | . . . . . 37 . . Melee . | . . . . . . . . Projectile . | . . . . . . . . AOE 37 | . . . . . 37 . . Terrain Rammed . | . . . . . . . . Walls Destroyed . | . . . . . . . . Machines Disabled . | . . . . . . . . Actions | -11 -10 -9 -9 -8 -7 -7 -7 --------- Run | Yrd Mat Mat Min Mat Fac Was Fac Total 2228 | 55 316 292 303 636 225 182 219 Wait 82 | . 6 3 7 32 34 . . Move 1849 | 47 267 221 283 477 168 169 217 Hop . | . . . . . . . . Pick Up 19 | 3 6 2 2 5 1 . . Fast Attach 32 | 5 3 4 . 11 3 5 1 Attach 13 | . 3 2 . 4 4 . . Detach 2 | . . 1 . 1 . . . Swap 24 | . 1 9 . 12 2 . . Drop 30 | . 3 11 2 11 3 . . Fire 174 | . 27 39 9 83 10 6 . Melee . | . . . . . . . . Ram 1 | . . . . . . . 1 Kick . | . . . . . . . . Crush 2 | . . . . . . 2 . Escape Stasis . | . . . . . . . . Rewire . | . . . . . . . . Trap . | . . . . . . . . Miscellaneous . | . . . . . . . . Route ------- -11/Scrapyard -10/Materials -9/Materials -9/Mines -8/Materials (discovered 2 exits: *Fac x2) -7/Factory -7/Waste -7/Factory History --------- Turn | Location | Event 13 | -11/Scrapyard | Discovered new exit (range 16) 49 | -11/Scrapyard | Entered Materials 315 | -10/Materials | Build established: Mutant 500 | -10/Materials | Discovered new exit (range 10) 513 | -10/Materials | Identified exit to Materials 516 | -10/Materials | Entered another Materials area 516 | -9/Materials | Evolved 2 slots: Power x1, Propulsion x1 922 | -9/Materials | Build established: Scavenger-Mutant 998 | -9/Materials | Discovered new exit (range 12) 1014 | -9/Materials | Identified exit to Mines 1016 | -9/Materials | Entered Mines 1062 | -9/Mines | Learned Materials security intel 1096 | -9/Mines | Found a hidden stash of uninstalled traps 1359 | -9/Mines | Learned 2 Materials zone layouts 1471 | -9/Mines | Discovered new exit (range 9) 1497 | -9/Mines | Identified exit to Materials 1506 | -9/Mines | Entered Materials 1506 | -8/Materials | Evolved 2 slots: Propulsion x1, Utility x1 1507 | -8/Materials | Identified exit to Factory 2040 | -8/Materials | Lost 3 parts (2n1u) 2097 | -8/Materials | Discovered exit to Factory (range 12) 2518 | -8/Materials | Entered Factory 2518 | -7/Factory | Evolved 2 slots: Utility x1, Weapon x1 2569 | -7/Factory | Fabricated Carbon-fiber Leg (x2) 2644 | -7/Factory | Lost 4 parts (1p1n1u1w) 2799 | -7/Factory | Sucked down chute 2799 | -7/Factory | Entered Waste 2800 | -7/Waste | Met a frightened Derelict 2808 | -7/Waste | Spotted C-40 Crusher 2814 | -7/Waste | EMP discharged 2814 | -7/Waste | Spotted C-40 Crusher 2820 | -7/Waste | Build established: Scavenger-Gunner 2824 | -7/Waste | Destroyed C-40 Crusher 2835 | -7/Waste | Crushed by Compactor (1 part destroyed, 2 dropped) 2838 | -7/Waste | Crushed by Compactor (1 part destroyed, 2 dropped) 2841 | -7/Waste | Crushed by Compactor (1 part destroyed, 1 dropped) 2848 | -7/Waste | Spotted C-40 Crusher 2848 | -7/Waste | Crushed by Compactor (1 part destroyed, 2 dropped) 2857 | -7/Waste | Found Damper Plating 2872 | -7/Waste | Spotted C-40 Crusher 2879 | -7/Waste | Lost 5 parts (2p1n2w) 2884 | -7/Waste | Spotted C-40 Crusher 2900 | -7/Waste | Spotted C-40 Crusher 2914 | -7/Waste | EMP discharged 2914 | -7/Waste | System corruption reached 10% 3014 | -7/Waste | EMP discharged 3014 | -7/Waste | Crushed by Compactor (1 part destroyed) 3017 | -7/Waste | Crushed by Compactor (0 parts destroyed, 1 dropped) 3065 | -7/Waste | Discovered new exit (range 14) 3073 | -7/Waste | Entered Factory 3128 | -7/Factory | Core integrity fell below 50% 3158 | -7/Factory | Core integrity fell below 20% 3194 | -7/Factory | Build established: Mutant 3194 | -7/Factory | Destroyed by G-47 Trooper with Particle Gun Last Messages --------------- 03131_ Connecting with Fabricator... 03131_ Current location identified: Factory >>Load(Carbon-fiber Leg) Uploading Carbon-fiber Leg schematic... Loaded successfully: Carbon-fiber Leg Rating: 3 Time: 73 Initiate build sequence. >>Build Building Carbon-fiber Leg... ETC: 73 03131_ ALERT: Unauthorized use of fabrication network. Dispatching investigation squad. 03145_ System corrupted: Component data lost. 03162_ System corrupted: Heat flow error (+240). 03166_ T-07 Excavator is excavating. 03170_ W-25 Informer sends out distress signal. 03173_ Acquired Com. Wheel. 03186_ System corrupted: Heat flow error (+123). Map ----- +----------------------------------------------------+ | ?????????????????????????????????????????????????? | | ?????????????????????????????????????????????????? | | ?????????????????????????????????????????????????? | | ?????????????????????????????????????????????????? | | ?????????????????????????????????????????????????? | | ?????????????????????????????????????????????????? | | ?????????????????????????????????????????????????? | | ?????????????????????????????????????????????????? | | ?????????????????????????????????????????????????? | | ?????????????????????????????????????????????????? | | ?????????????????????????????????????????????????? | | ?????????????????????????????????????????????????? | | ?????????????????????????????????????????????????? | | ?????????????????????????????????????????????????? | | ?????????????????????????????????????????????????? | | ?????????????????????????????????????????????????? | | ?????????????????????????????????? ????????????? | | ?????????????????????????????????? ??????????? | | ?????????????????????????????????? ?????????? | | ????????????????????????????????? ?????????? | | ?????????????????????????????????# #?????????? | | ???????????????????############### #?????????? | | ???????????????????# = ! # #?????????? | | ???????????????????# ! == # #?????????? | | ???????????????????# w # #?????????? | | ???????????????????# @ g ! + #??? ?????? | | ???????????????????# """"""""" # #?? ?????? | | ???????????????????# g g # #? ??????? | | ???????????????????#/############# #? ???????? | | ???????????????????# #?# # # ???????? | | ???????????????????# #?# # # ????????? | | ???????????????????# #?# # /?????????? | | ???????????????????# #?# """ + #?????????? | | ???????????????????# #?# """"" # #?????????? | | ?????????????????### ### """"" ! # #?????????? | | ???????????????### # # #?????????? | | ???????????????# # # """T""" # #?????????? | | ???????????????? ########### #?????????? | | ???????????????### #?????????# #?????????? | | ?????????????????# #?????????# #?????????? | | ?????????????????### ###?????????# #?????????? | | ???????????????????# #???????????# #?????????? | | ???????????????????# ############# #?????????? | | ???????????????????# """" ######## ?? | | ???????????????????# ""F" | | ???????????????????# | | ???????????????????# | | ??????############## | | ??????# ] # ############### | | ??????# # """ """ #???????????????? | +----------------------------------------------------+ Best States ------------- Heat Dissipation 34 Energy Generation 23 Energy Capacity 450 Matter Stores 300 Matter Capacity 300 Sight Range 16 Terrain Scan Density 10 Armor Coverage 1600 Resistance: EM 90 Evasion (%) 55 Targeting Accuracy 6 Recoil Reduction 4 Offensive Hacking 20 Item Schematics ----------------- Carbon-fiber Leg | -8/Materials | Scanalyzed Robot Schematics ------------------ None Fabricated ------------ Carbon-fiber Leg | x2 | -7/Factory Alien Tech Used ----------------- None Achievements -------------- None Challenges ------------ None Game ------ Seed VortexPhasingPick Manual? 0 Play Time 00:30:46 Cumulative 15.1 hours Start 2024.07.08 @ 16:47:26 End 2024.07.08 @ 17:17:35 Sessions 1 Manual Loads 0 Difficulty Rogue Special Mode None Game No. 22 Rogue 22 Adventurer 0 Explorer 0 Win Type - Total 0 Types 0/0/0/0/0/0/0/0/0 Lore% 14 Gallery% 19 Achievement% 15 Wizard Run 0 Options --------- Layout 1 ASCII 0 Keyboard 1 Movement Numpad Keybinds 0 Fullscreen 2 Font 24/Cog Map View 50x35 Zoom Use 0% Tactical HUD 1 Map Filters NONE Filters NONE Steam 1 RUN: 11fee2a5-a6c0-4910-a38f-66077b320de8